[Event "Titled Tuesday Blitz January 31 Late 2023"]
[White "Desideri, Ricardo Maruchi"]
[Black "Ruiz Aguilar, Pablo Alexander"]
[WhiteFideId "2110440"]
[BlackFideId "4401352"]
[WhiteElo "1959"]
[BlackElo "2161"]
[Result "0-1"]
[Round "10"]
[TimeControl "180+2"]
[Date "2023.01.31"]
[WhiteClock "0:00:27"]
[BlackClock "0:01:14"]

1. e4 {[%clk 0:03:00]}  c5 {[%clk 0:03:00]} 2. Nf3 {[%clk 0:03:00]}  e6 {[%clk 0:03:00]} 3. d4 {[%clk 0:03:00]}  cxd4 {[%clk 0:03:01]} 4. Nxd4 {[%clk 0:03:00]}  a6 {[%clk 0:03:01]} 5. Bd3 {[%clk 0:03:00]}  Nc6 {[%clk 0:03:01]} 6. Nb3 {[%clk 0:02:59]}  Nf6 {[%clk 0:02:59]} 7. g4 {[%clk 0:02:57]}  d5 {[%clk 0:02:58]} 8. g5 {[%clk 0:02:57]}  Nxe4 {[%clk 0:02:57]} 9. Bxe4 {[%clk 0:02:57]}  dxe4 {[%clk 0:02:57]} 10. Qxd8+ {[%clk 0:02:58]}  Nxd8 {[%clk 0:02:56]} 11. Nc3 {[%clk 0:02:58]}  e5 {[%clk 0:02:51]} 12. Nxe4 {[%clk 0:02:58]}  Bf5 {[%clk 0:02:52]} 13. Nbd2 {[%clk 0:02:52]}  Nc6 {[%clk 0:02:50]} 14. c3 {[%clk 0:02:50]}  O-O-O {[%clk 0:02:42]} 15. Ng3 {[%clk 0:02:47]}  Bd3 {[%clk 0:02:41]} 16. Nde4 {[%clk 0:02:39]}  h6 {[%clk 0:02:13]} 17. gxh6 {[%clk 0:02:34]}  gxh6 {[%clk 0:02:13]} 18. Be3 {[%clk 0:02:34]}  f5 {[%clk 0:02:12]} 19. Bb6 {[%clk 0:01:33]}  fxe4 {[%clk 0:02:01]} 20. Bxd8 {[%clk 0:01:32]}  Nxd8 {[%clk 0:02:01]} 21. O-O-O {[%clk 0:01:31]}  Bc5 {[%clk 0:02:00]} 22. b4 {[%clk 0:01:09]}  Bxf2 {[%clk 0:01:59]} 23. Nf5 {[%clk 0:01:03]}  Ne6 {[%clk 0:01:48]} 24. Nd6+ {[%clk 0:00:57]}  Kc7 {[%clk 0:01:45]} 25. Nf7 {[%clk 0:00:53]}  Rf8 {[%clk 0:01:43]} 26. Nxe5 {[%clk 0:00:53]}  Nf4 {[%clk 0:01:39]} 27. Kb2 {[%clk 0:00:47]}  Bb5 {[%clk 0:01:22]} 28. Ka3 {[%clk 0:00:37]}  e3 {[%clk 0:01:20]} 29. c4 {[%clk 0:00:37]}  Be8 {[%clk 0:01:18]} 30. Nd3 {[%clk 0:00:28]}  Nxd3 {[%clk 0:01:14]} 31. Rxd3 {[%clk 0:00:27]}  e2 {[%clk 0:01:14]} 0-1


[Site "https://www.chess.com"]

[Event "Titled Tuesday Blitz January 31 Late 2023"]
[White "Almedina Ortiz, Edgardo J."]
[Black "Rose, Felix"]
[WhiteFideId "3100197"]
[BlackFideId "5105722"]
[WhiteElo "2156"]
[BlackElo "2091"]
[Result "0-1"]
[Round "10"]
[TimeControl "180+2"]
[Date "2023.01.31"]
[WhiteClock "0:00:01"]
[BlackClock "0:00:48"]

1. Nf3 {[%clk 0:02:59]}  d5 {[%clk 0:02:59]} 2. g3 {[%clk 0:02:58]}  c6 {[%clk 0:02:59]} 3. Bg2 {[%clk 0:02:58]}  Bf5 {[%clk 0:03:00]} 4. O-O {[%clk 0:02:57]}  h6 {[%clk 0:02:59]} 5. b3 {[%clk 0:02:54]}  Nf6 {[%clk 0:02:57]} 6. Bb2 {[%clk 0:02:54]}  e6 {[%clk 0:02:58]} 7. d3 {[%clk 0:02:54]}  Nbd7 {[%clk 0:02:54]} 8. Nbd2 {[%clk 0:02:52]}  Bh7 {[%clk 0:02:54]} 9. c4 {[%clk 0:02:39]}  Be7 {[%clk 0:02:50]} 10. a3 {[%clk 0:02:38]}  O-O {[%clk 0:02:50]} 11. b4 {[%clk 0:02:36]}  Re8 {[%clk 0:02:49]} 12. Qb3 {[%clk 0:02:24]}  Bd6 {[%clk 0:02:45]} 13. Rfc1 {[%clk 0:02:12]}  Qe7 {[%clk 0:02:44]} 14. Bc3 {[%clk 0:02:00]}  e5 {[%clk 0:02:44]} 15. cxd5 {[%clk 0:01:27]}  cxd5 {[%clk 0:02:37]} 16. Qb2 {[%clk 0:01:26]}  e4 {[%clk 0:02:32]} 17. dxe4 {[%clk 0:01:25]}  dxe4 {[%clk 0:02:30]} 18. Nd4 {[%clk 0:01:16]}  e3 {[%clk 0:02:27]} 19. fxe3 {[%clk 0:01:13]}  Qxe3+ {[%clk 0:02:25]} 20. Kh1 {[%clk 0:01:13]}  Ng4 {[%clk 0:02:22]} 21. Rf1 {[%clk 0:00:52]}  Nf2+ {[%clk 0:02:13]} 22. Rxf2 {[%clk 0:00:51]}  Qxf2 {[%clk 0:02:13]} 23. Rf1 {[%clk 0:00:48]}  Qe3 {[%clk 0:02:07]} 24. Nc4 {[%clk 0:00:48]}  Qe7 {[%clk 0:02:01]} 25. Nxd6 {[%clk 0:00:43]}  Qxd6 {[%clk 0:02:01]} 26. Nb5 {[%clk 0:00:39]}  Qb6 {[%clk 0:01:52]} 27. a4 {[%clk 0:00:24]}  Be4 {[%clk 0:01:28]} 28. Bxg7 {[%clk 0:00:17]}  Qc6 {[%clk 0:01:20]} 29. Bf3 {[%clk 0:00:13]}  Bxf3+ {[%clk 0:01:19]} 30. exf3 {[%clk 0:00:13]}  Qc4 {[%clk 0:01:11]} 31. Rf2 {[%clk 0:00:10]}  Kh7 {[%clk 0:00:59]} 32. Bd4 {[%clk 0:00:08]}  Rac8 {[%clk 0:00:53]} 33. Kg2 {[%clk 0:00:05]}  Qc1 {[%clk 0:00:50]} 34. Qb3 {[%clk 0:00:01]}  Qc4 {[%clk 0:00:48]} 0-1


[Site "https://www.chess.com"]

[Event "Titled Tuesday Blitz January 31 Late 2023"]
[White "Floresvillar Gonzalez, Luis Migu"]
[Black "Figorito, Nick"]
[WhiteFideId "5100542"]
[BlackFideId "30923689"]
[WhiteElo "2043"]
[BlackElo "2036"]
[Result "1-0"]
[Round "10"]
[TimeControl "180+2"]
[Date "2023.01.31"]
[WhiteClock "0:00:05"]
[BlackClock "0:00:16"]

1. d4 {[%clk 0:03:00]}  Nf6 {[%clk 0:03:00]} 2. c3 {[%clk 0:03:01]}  g6 {[%clk 0:03:00]} 3. Nf3 {[%clk 0:03:00]}  Bg7 {[%clk 0:03:00]} 4. h4 {[%clk 0:03:01]}  d5 {[%clk 0:03:00]} 5. Bg5 {[%clk 0:02:59]}  c5 {[%clk 0:03:00]} 6. e3 {[%clk 0:02:59]}  Nc6 {[%clk 0:03:00]} 7. Be2 {[%clk 0:02:58]}  Qb6 {[%clk 0:03:00]} 8. Qb3 {[%clk 0:02:55]}  c4 {[%clk 0:02:58]} 9. Qxb6 {[%clk 0:02:55]}  axb6 {[%clk 0:02:59]} 10. Nbd2 {[%clk 0:02:52]}  b5 {[%clk 0:02:58]} 11. a3 {[%clk 0:02:52]}  b4 {[%clk 0:02:58]} 12. cxb4 {[%clk 0:02:51]}  Nxb4 {[%clk 0:02:58]} 13. O-O {[%clk 0:02:50]}  Nc6 {[%clk 0:02:54]} 14. Rfd1 {[%clk 0:02:43]}  O-O {[%clk 0:02:46]} 15. Ne5 {[%clk 0:02:41]}  Bf5 {[%clk 0:02:37]} 16. f4 {[%clk 0:02:36]}  h6 {[%clk 0:02:28]} 17. Bxf6 {[%clk 0:02:35]}  exf6 {[%clk 0:02:20]} 18. Nef3 {[%clk 0:02:29]}  Rfe8 {[%clk 0:02:15]} 19. Kf2 {[%clk 0:02:29]}  b5 {[%clk 0:02:11]} 20. Re1 {[%clk 0:02:28]}  Na5 {[%clk 0:02:06]} 21. Rac1 {[%clk 0:02:25]}  Be4 {[%clk 0:02:04]} 22. Nxe4 {[%clk 0:02:20]}  Rxe4 {[%clk 0:02:02]} 23. Nd2 {[%clk 0:02:18]}  Re7 {[%clk 0:01:59]} 24. Bf3 {[%clk 0:02:17]}  Rd8 {[%clk 0:01:56]} 25. Nb1 {[%clk 0:02:17]}  Nb3 {[%clk 0:01:56]} 26. Rc2 {[%clk 0:02:13]}  f5 {[%clk 0:01:50]} 27. Nc3 {[%clk 0:02:11]}  Bf6 {[%clk 0:01:48]} 28. g3 {[%clk 0:02:07]}  Red7 {[%clk 0:01:20]} 29. Nxb5 {[%clk 0:02:04]}  Be7 {[%clk 0:01:15]} 30. Nc3 {[%clk 0:02:00]}  Kg7 {[%clk 0:01:13]} 31. a4 {[%clk 0:01:56]}  Na5 {[%clk 0:01:09]} 32. h5 {[%clk 0:01:35]}  Bb4 {[%clk 0:01:09]} 33. hxg6 {[%clk 0:01:33]}  fxg6 {[%clk 0:01:09]} 34. Ree2 {[%clk 0:01:29]}  Bxc3 {[%clk 0:01:08]} 35. bxc3 {[%clk 0:01:24]}  Rb8 {[%clk 0:01:08]} 36. Rb2 {[%clk 0:01:23]}  Nb3 {[%clk 0:01:04]} 37. Rec2 {[%clk 0:01:17]}  Ra8 {[%clk 0:01:03]} 38. Ra2 {[%clk 0:01:16]}  Ra5 {[%clk 0:01:00]} 39. g4 {[%clk 0:01:14]}  fxg4 {[%clk 0:00:58]} 40. Bxg4 {[%clk 0:01:14]}  Rda7 {[%clk 0:00:58]} 41. Bf3 {[%clk 0:01:12]}  Kf6 {[%clk 0:00:56]} 42. Kg3 {[%clk 0:01:09]}  Ke6 {[%clk 0:00:53]} 43. Bg4+ {[%clk 0:01:01]}  Kf6 {[%clk 0:00:49]} 44. Rh2 {[%clk 0:00:58]}  h5 {[%clk 0:00:49]} 45. Bf3 {[%clk 0:00:58]}  Ke6 {[%clk 0:00:46]} 46. Kh4 {[%clk 0:00:55]}  Rxa4 {[%clk 0:00:46]} 47. Rxa4 {[%clk 0:00:52]}  Rxa4 {[%clk 0:00:47]} 48. Kg5 {[%clk 0:00:52]}  Ra8 {[%clk 0:00:35]} 49. f5+ {[%clk 0:00:43]}  gxf5 {[%clk 0:00:35]} 50. Rxh5 {[%clk 0:00:43]}  Rg8+ {[%clk 0:00:32]} 51. Kf4 {[%clk 0:00:43]}  Rf8 {[%clk 0:00:29]} 52. Rh6+ {[%clk 0:00:41]}  Ke7 {[%clk 0:00:22]} 53. Bxd5 {[%clk 0:00:39]}  Nd2 {[%clk 0:00:22]} 54. Rc6 {[%clk 0:00:26]}  Kd7 {[%clk 0:00:14]} 55. Rc5 {[%clk 0:00:24]}  Kd6 {[%clk 0:00:14]} 56. Bxc4 {[%clk 0:00:23]}  Ne4 {[%clk 0:00:11]} 57. Rxf5 {[%clk 0:00:16]}  Rxf5+ {[%clk 0:00:09]} 58. Kxf5 {[%clk 0:00:16]}  Nxc3 {[%clk 0:00:10]} 59. e4 {[%clk 0:00:14]}  Ke7 {[%clk 0:00:09]} 60. e5 {[%clk 0:00:13]}  Na4 {[%clk 0:00:08]} 61. Ke4 {[%clk 0:00:13]}  Nc3+ {[%clk 0:00:08]} 62. Kd3 {[%clk 0:00:09]}  Nd1 {[%clk 0:00:08]} 63. Bd5 {[%clk 0:00:08]}  Nf2+ {[%clk 0:00:08]} 64. Ke3 {[%clk 0:00:08]}  Ng4+ {[%clk 0:00:08]} 65. Ke4 {[%clk 0:00:07]}  Nf2+ {[%clk 0:00:08]} 66. Kf3 {[%clk 0:00:07]}  Nd3 {[%clk 0:00:09]} 67. Be4 {[%clk 0:00:06]}  Nb4 {[%clk 0:00:09]} 68. Ke3 {[%clk 0:00:05]}  Na6 {[%clk 0:00:08]} 69. Kd3 {[%clk 0:00:06]}  Nc7 {[%clk 0:00:09]} 70. Kc4 {[%clk 0:00:06]}  Ne6 {[%clk 0:00:09]} 71. d5 {[%clk 0:00:05]}  Ng5 {[%clk 0:00:10]} 72. Kd4 {[%clk 0:00:03]}  Nf7 {[%clk 0:00:10]} 73. d6+ {[%clk 0:00:03]}  Ke6 {[%clk 0:00:10]} 74. Bd5+ {[%clk 0:00:02]}  Kd7 {[%clk 0:00:10]} 75. Bxf7 {[%clk 0:00:03]}  Kc6 {[%clk 0:00:10]} 76. Ke4 {[%clk 0:00:03]}  Kd7 {[%clk 0:00:11]} 77. Kf5 {[%clk 0:00:03]}  Kd8 {[%clk 0:00:12]} 78. Kf6 {[%clk 0:00:04]}  Kd7 {[%clk 0:00:13]} 79. e6+ {[%clk 0:00:04]}  Kxd6 {[%clk 0:00:14]} 80. e7 {[%clk 0:00:05]}  Kc5 {[%clk 0:00:15]} 81. e8=Q {[%clk 0:00:05]}  Kd4 {[%clk 0:00:15]} 82. Qe7 {[%clk 0:00:05]}  Kc3 {[%clk 0:00:16]} 83. Qd6 {[%clk 0:00:05]} 1-0


[Site "https://www.chess.com"]

[Event "Titled Tuesday Blitz January 31 Late 2023"]
[White "Vaglio Munoz, Jaime"]
[Black "Mosquera, Miguel"]
[WhiteFideId "6500145"]
[BlackFideId "4401131"]
[WhiteElo "2174"]
[BlackElo "2371"]
[Result "0-1"]
[Round "10"]
[TimeControl "180+2"]
[Date "2023.01.31"]
[WhiteClock "0:00:02"]
[BlackClock "0:00:10"]

1. Nf3 {[%clk 0:03:00]}  d5 {[%clk 0:02:58]} 2. b3 {[%clk 0:03:00]}  c5 {[%clk 0:02:57]} 3. Bb2 {[%clk 0:03:00]}  Nf6 {[%clk 0:02:57]} 4. e3 {[%clk 0:03:00]}  Nc6 {[%clk 0:02:58]} 5. Bb5 {[%clk 0:02:59]}  Bd7 {[%clk 0:02:57]} 6. Bxc6 {[%clk 0:02:59]}  Bxc6 {[%clk 0:02:56]} 7. Ne5 {[%clk 0:02:59]}  e6 {[%clk 0:02:56]} 8. f4 {[%clk 0:02:59]}  Bd6 {[%clk 0:02:56]} 9. O-O {[%clk 0:02:59]}  O-O {[%clk 0:02:56]} 10. d3 {[%clk 0:02:58]}  Rc8 {[%clk 0:02:55]} 11. Nd2 {[%clk 0:02:57]}  b5 {[%clk 0:02:53]} 12. Qe1 {[%clk 0:02:48]}  c4 {[%clk 0:02:37]} 13. dxc4 {[%clk 0:02:28]}  dxc4 {[%clk 0:02:31]} 14. Bd4 {[%clk 0:01:38]}  Bb7 {[%clk 0:02:01]} 15. Qh4 {[%clk 0:01:36]}  c3 {[%clk 0:01:55]} 16. Ndf3 {[%clk 0:01:34]}  Be7 {[%clk 0:01:36]} 17. Rad1 {[%clk 0:01:20]}  Ne4 {[%clk 0:01:26]} 18. Qg4 {[%clk 0:01:08]}  f5 {[%clk 0:01:10]} 19. Qh5 {[%clk 0:01:03]}  Nf6 {[%clk 0:01:05]} 20. Qh3 {[%clk 0:00:56]}  Qe8 {[%clk 0:01:00]} 21. Ng5 {[%clk 0:00:42]}  Bd5 {[%clk 0:00:52]} 22. Nd7 {[%clk 0:00:21]}  Qg6 {[%clk 0:00:25]} 23. Nxf8 {[%clk 0:00:16]}  Bxf8 {[%clk 0:00:26]} 24. Qg3 {[%clk 0:00:09]}  Nh5 {[%clk 0:00:20]} 25. Qh4 {[%clk 0:00:09]}  Be7 {[%clk 0:00:16]} 26. Qf2 {[%clk 0:00:08]}  Bxg5 {[%clk 0:00:13]} 27. fxg5 {[%clk 0:00:07]}  Qxg5 {[%clk 0:00:14]} 28. Rd3 {[%clk 0:00:04]}  Nf6 {[%clk 0:00:13]} 29. Rxc3 {[%clk 0:00:04]}  Rxc3 {[%clk 0:00:10]} 30. Bxc3 {[%clk 0:00:03]}  Ne4 {[%clk 0:00:11]} 31. Qe1 {[%clk 0:00:03]}  Nxc3 {[%clk 0:00:10]} 32. Rf2 {[%clk 0:00:02]}  Ne4 {[%clk 0:00:10]} 0-1


[Site "https://www.chess.com"]

[Event "Titled Tuesday Blitz January 31 Late 2023"]
[White "Cella, Glaucio Dalla Cortt"]
[Black "Romero Ruscalleda, Josep"]
[WhiteFideId "2119455"]
[BlackFideId "2231859"]
[WhiteElo "1894"]
[BlackElo "2160"]
[Result "0-1"]
[Round "10"]
[TimeControl "180+2"]
[Date "2023.01.31"]
[WhiteClock "0:00:14"]
[BlackClock "0:00:26"]

1. e4 {[%clk 0:01:57]}  g6 {[%clk 0:03:00]} 2. d4 {[%clk 0:01:55]}  Bg7 {[%clk 0:03:01]} 3. Nf3 {[%clk 0:01:55]}  d6 {[%clk 0:03:02]} 4. c4 {[%clk 0:01:55]}  Nc6 {[%clk 0:03:01]} 5. Nc3 {[%clk 0:01:56]}  Bg4 {[%clk 0:02:59]} 6. d5 {[%clk 0:01:55]}  Nd4 {[%clk 0:02:59]} 7. Be2 {[%clk 0:01:53]}  Nxe2 {[%clk 0:02:58]} 8. Qxe2 {[%clk 0:01:54]}  e5 {[%clk 0:02:58]} 9. h3 {[%clk 0:01:18]}  Bxf3 {[%clk 0:02:56]} 10. Qxf3 {[%clk 0:01:19]}  Ne7 {[%clk 0:02:56]} 11. O-O {[%clk 0:01:19]}  O-O {[%clk 0:02:56]} 12. Bg5 {[%clk 0:01:18]}  f6 {[%clk 0:02:55]} 13. Be3 {[%clk 0:01:15]}  f5 {[%clk 0:02:56]} 14. Rab1 {[%clk 0:01:12]}  f4 {[%clk 0:02:54]} 15. Bc1 {[%clk 0:01:10]}  g5 {[%clk 0:02:54]} 16. b4 {[%clk 0:01:07]}  Ng6 {[%clk 0:02:52]} 17. a4 {[%clk 0:01:07]}  Nh4 {[%clk 0:02:51]} 18. Qg4 {[%clk 0:01:04]}  Rf6 {[%clk 0:02:34]} 19. c5 {[%clk 0:01:02]}  Qe7 {[%clk 0:02:21]} 20. c6 {[%clk 0:00:59]}  b6 {[%clk 0:02:17]} 21. Bb2 {[%clk 0:00:53]}  f3 {[%clk 0:02:12]} 22. g3 {[%clk 0:00:51]}  Ng2 {[%clk 0:02:08]} 23. Kh2 {[%clk 0:00:47]}  Raf8 {[%clk 0:02:00]} 24. Qxg5 {[%clk 0:00:41]}  Kh8 {[%clk 0:01:53]} 25. Rg1 {[%clk 0:00:37]}  Bh6 {[%clk 0:01:53]} 26. Qh5 {[%clk 0:00:35]}  Rg8 {[%clk 0:01:47]} 27. Rxg2 {[%clk 0:00:30]}  Rg5 {[%clk 0:01:41]} 28. Qh4 {[%clk 0:00:27]}  fxg2 {[%clk 0:01:33]} 29. Rg1 {[%clk 0:00:27]}  Rxf2 {[%clk 0:01:29]} 30. Bc1 {[%clk 0:00:24]}  Qg7 {[%clk 0:01:06]} 31. Bxg5 {[%clk 0:00:17]}  Bxg5 {[%clk 0:01:01]} 32. Qg4 {[%clk 0:00:17]}  Bd2 {[%clk 0:00:57]} 33. Qxg7+ {[%clk 0:00:12]}  Kxg7 {[%clk 0:00:56]} 34. Nd1 {[%clk 0:00:12]}  Rf1 {[%clk 0:00:52]} 35. Nb2 {[%clk 0:00:07]}  Bxb4 {[%clk 0:00:42]} 36. Rxg2 {[%clk 0:00:07]}  Re1 {[%clk 0:00:40]} 37. Nd3 {[%clk 0:00:07]}  Rxe4 {[%clk 0:00:38]} 38. Nxb4 {[%clk 0:00:07]}  Rxb4 {[%clk 0:00:38]} 39. Ra2 {[%clk 0:00:06]}  a5 {[%clk 0:00:37]} 40. h4 {[%clk 0:00:05]}  Rd4 {[%clk 0:00:36]} 41. Kh3 {[%clk 0:00:06]}  Rxd5 {[%clk 0:00:36]} 42. Rf2 {[%clk 0:00:06]}  Rc5 {[%clk 0:00:36]} 43. Rf5 {[%clk 0:00:06]}  Rxc6 {[%clk 0:00:35]} 44. Rg5+ {[%clk 0:00:07]}  Kf7 {[%clk 0:00:35]} 45. Rh5 {[%clk 0:00:08]}  Kg7 {[%clk 0:00:33]} 46. Rg5+ {[%clk 0:00:08]}  Kf6 {[%clk 0:00:33]} 47. Rh5 {[%clk 0:00:08]}  e4 {[%clk 0:00:32]} 48. Rxh7 {[%clk 0:00:08]}  e3 {[%clk 0:00:31]} 49. Rh8 {[%clk 0:00:09]}  Rc5 {[%clk 0:00:31]} 50. Rf8+ {[%clk 0:00:09]}  Ke7 {[%clk 0:00:30]} 51. Rf1 {[%clk 0:00:10]}  e2 {[%clk 0:00:30]} 52. Re1 {[%clk 0:00:11]}  Re5 {[%clk 0:00:30]} 53. Kg2 {[%clk 0:00:12]}  b5 {[%clk 0:00:25]} 54. Kf2 {[%clk 0:00:12]}  bxa4 {[%clk 0:00:25]} 55. Rxe2 {[%clk 0:00:13]}  Rxe2+ {[%clk 0:00:25]} 56. Kxe2 {[%clk 0:00:14]}  a3 {[%clk 0:00:25]} 57. Kf3 {[%clk 0:00:13]}  a2 {[%clk 0:00:26]} 58. Kg4 {[%clk 0:00:14]}  a1=Q {[%clk 0:00:26]} 0-1


[Site "https://www.chess.com"]

[Event "Titled Tuesday Blitz January 31 Late 2023"]
[White "Kravtsiv, Martyn"]
[Black "Andreikin, Dmitry"]
[WhiteFideId "14113147"]
[BlackFideId "4158814"]
[WhiteElo "2598"]
[BlackElo "2729"]
[Result "0-1"]
[Round "11"]
[TimeControl "180+2"]
[Date "2023.02.01"]
[WhiteClock "0:00:03"]
[BlackClock "0:00:09"]

1. e4 {[%clk 0:03:00]}  g6 {[%clk 0:02:59]} 2. d4 {[%clk 0:03:00]}  Bg7 {[%clk 0:02:59]} 3. Nc3 {[%clk 0:03:00]}  c6 {[%clk 0:03:00]} 4. f4 {[%clk 0:03:01]}  Qb6 {[%clk 0:02:59]} 5. Nf3 {[%clk 0:02:48]}  Nh6 {[%clk 0:02:59]} 6. Na4 {[%clk 0:02:39]}  Qa5+ {[%clk 0:02:55]} 7. c3 {[%clk 0:02:38]}  d6 {[%clk 0:02:53]} 8. b4 {[%clk 0:02:36]}  Qc7 {[%clk 0:02:53]} 9. Be3 {[%clk 0:02:28]}  O-O {[%clk 0:02:51]} 10. Bd3 {[%clk 0:02:27]}  e5 {[%clk 0:02:42]} 11. dxe5 {[%clk 0:02:12]}  dxe5 {[%clk 0:02:42]} 12. fxe5 {[%clk 0:02:08]}  Ng4 {[%clk 0:02:41]} 13. Bc5 {[%clk 0:02:08]}  Rd8 {[%clk 0:02:22]} 14. Bd6 {[%clk 0:02:07]}  Rxd6 {[%clk 0:02:21]} 15. exd6 {[%clk 0:02:07]}  Qxd6 {[%clk 0:02:22]} 16. Bc4 {[%clk 0:01:29]}  Qe7 {[%clk 0:02:22]} 17. O-O {[%clk 0:01:22]}  Ne3 {[%clk 0:01:58]} 18. Qd3 {[%clk 0:00:37]}  Nxf1 {[%clk 0:01:58]} 19. Bb3 {[%clk 0:00:20]}  Nxh2 {[%clk 0:01:46]} 20. Nxh2 {[%clk 0:00:20]}  Nd7 {[%clk 0:01:43]} 21. Rf1 {[%clk 0:00:19]}  Ne5 {[%clk 0:01:41]} 22. Qd2 {[%clk 0:00:18]}  Be6 {[%clk 0:01:30]} 23. Bxe6 {[%clk 0:00:17]}  Qxe6 {[%clk 0:01:25]} 24. Nc5 {[%clk 0:00:18]}  Qc4 {[%clk 0:01:25]} 25. Nf3 {[%clk 0:00:16]}  Ng4 {[%clk 0:00:58]} 26. Nxb7 {[%clk 0:00:11]}  Bxc3 {[%clk 0:00:51]} 27. Qf4 {[%clk 0:00:11]}  h5 {[%clk 0:00:32]} 28. Nd6 {[%clk 0:00:10]}  Qxa2 {[%clk 0:00:30]} 29. e5 {[%clk 0:00:08]}  Rf8 {[%clk 0:00:18]} 30. Ng5 {[%clk 0:00:07]}  Bxe5 {[%clk 0:00:16]} 31. Qc4 {[%clk 0:00:04]}  Qxc4 {[%clk 0:00:13]} 32. Nxc4 {[%clk 0:00:04]}  Bd4+ {[%clk 0:00:13]} 33. Kh1 {[%clk 0:00:05]}  Ne3 {[%clk 0:00:11]} 34. Rf4 {[%clk 0:00:04]}  Nf5 {[%clk 0:00:10]} 35. Nd6 {[%clk 0:00:03]}  Be5 {[%clk 0:00:09]} 0-1


[Site "https://www.chess.com"]

[Event "Titled Tuesday Blitz January 31 Late 2023"]
[White "Salem, A.R. Saleh"]
[Black "Oparin, Grigoriy"]
[WhiteFideId "9301348"]
[BlackFideId "24125890"]
[WhiteElo "2677"]
[BlackElo "2667"]
[Result "1-0"]
[Round "11"]
[TimeControl "180+2"]
[Date "2023.02.01"]
[WhiteClock "0:00:09"]
[BlackClock "0:00:01"]

1. d4 {[%clk 0:02:55]}  Nf6 {[%clk 0:03:00]} 2. c4 {[%clk 0:02:56]}  e6 {[%clk 0:03:01]} 3. Nc3 {[%clk 0:02:56]}  Bb4 {[%clk 0:03:01]} 4. a3 {[%clk 0:02:57]}  Bxc3+ {[%clk 0:03:01]} 5. bxc3 {[%clk 0:02:58]}  c5 {[%clk 0:02:58]} 6. f3 {[%clk 0:02:58]}  Nc6 {[%clk 0:02:57]} 7. e4 {[%clk 0:02:59]}  cxd4 {[%clk 0:02:55]} 8. cxd4 {[%clk 0:02:59]}  d5 {[%clk 0:02:56]} 9. cxd5 {[%clk 0:02:57]}  exd5 {[%clk 0:02:57]} 10. e5 {[%clk 0:02:58]}  Ng8 {[%clk 0:02:57]} 11. f4 {[%clk 0:02:55]}  Nge7 {[%clk 0:02:56]} 12. Be3 {[%clk 0:02:55]}  O-O {[%clk 0:02:49]} 13. Nf3 {[%clk 0:02:48]}  Bf5 {[%clk 0:02:45]} 14. Be2 {[%clk 0:02:35]}  Qa5+ {[%clk 0:02:40]} 15. Qd2 {[%clk 0:02:22]}  Qa4 {[%clk 0:02:32]} 16. O-O {[%clk 0:02:17]}  Be4 {[%clk 0:02:32]} 17. g4 {[%clk 0:02:13]}  f5 {[%clk 0:02:20]} 18. h3 {[%clk 0:02:08]}  Rac8 {[%clk 0:02:16]} 19. Ng5 {[%clk 0:02:07]}  Rfd8 {[%clk 0:02:05]} 20. Rfc1 {[%clk 0:02:03]}  Na5 {[%clk 0:01:50]} 21. Qb4 {[%clk 0:02:04]}  Qxb4 {[%clk 0:01:39]} 22. axb4 {[%clk 0:02:04]}  Nc4 {[%clk 0:01:39]} 23. Nxe4 {[%clk 0:01:42]}  fxe4 {[%clk 0:01:39]} 24. Bf2 {[%clk 0:01:37]}  Ng6 {[%clk 0:01:16]} 25. Bg3 {[%clk 0:01:37]}  a6 {[%clk 0:01:08]} 26. f5 {[%clk 0:01:37]}  Ne7 {[%clk 0:01:07]} 27. Bf4 {[%clk 0:01:32]}  Nc6 {[%clk 0:00:58]} 28. Bg5 {[%clk 0:00:44]}  Rd7 {[%clk 0:00:18]} 29. Rxc4 {[%clk 0:00:38]}  dxc4 {[%clk 0:00:16]} 30. Bxc4+ {[%clk 0:00:39]}  Kf8 {[%clk 0:00:16]} 31. Be6 {[%clk 0:00:40]}  Rcc7 {[%clk 0:00:13]} 32. Bxd7 {[%clk 0:00:20]}  Rxd7 {[%clk 0:00:13]} 33. e6 {[%clk 0:00:21]}  Rxd4 {[%clk 0:00:13]} 34. b5 {[%clk 0:00:22]}  Ne5 {[%clk 0:00:09]} 35. bxa6 {[%clk 0:00:22]}  bxa6 {[%clk 0:00:09]} 36. Kf2 {[%clk 0:00:23]}  Nf3 {[%clk 0:00:06]} 37. Be3 {[%clk 0:00:20]}  Rc4 {[%clk 0:00:06]} 38. Rxa6 {[%clk 0:00:20]}  Ke7 {[%clk 0:00:05]} 39. Ra7+ {[%clk 0:00:20]}  Kf6 {[%clk 0:00:05]} 40. Bf4 {[%clk 0:00:20]}  Ne5 {[%clk 0:00:02]} 41. Bxe5+ {[%clk 0:00:12]}  Kxe5 {[%clk 0:00:02]} 42. Rxg7 {[%clk 0:00:13]}  Kf4 {[%clk 0:00:01]} 43. e7 {[%clk 0:00:12]}  Rc2+ {[%clk 0:00:02]} 44. Ke1 {[%clk 0:00:13]}  Rc8 {[%clk 0:00:02]} 45. Ke2 {[%clk 0:00:09]}  Rc2+ {[%clk 0:00:01]} 46. Kd1 {[%clk 0:00:09]}  Rc8 {[%clk 0:00:01]} 47. f6 {[%clk 0:00:09]}  Ke3 {[%clk 0:00:01]} 48. f7 {[%clk 0:00:09]} 1-0


[Site "https://www.chess.com"]